fUST/lending_fUST_20240714
["ID","MTS","AMOUNT","RATE_DAILY","PERIOD"]
[332069078,1720948245787,-528.67,0.00026301,2]
[332069079,1720948245797,-500.0,0.00026301,2]
[332069080,1720948245806,-500.0,0.00026301,2]
[332069081,1720948245817,-500.0,0.00026301,2]
[332069082,1720948245827,-612.77,0.00026301,2]
[332069083,1720948245837,-500.0,0.00026301,2]
[332069084,1720948245847,-500.0,0.00026301,2]
[332069086,1720948245858,-6934.14,0.00026301,2]
[332069088,1720948245870,-500.0,0.00026301,2]
[332069090,1720948245879,-500.0,0.00026301,2]
[332069092,1720948245889,-771.78,0.00026301,2]
[332069101,1720948245973,-6364.29,0.00026301,2]
[332069103,1720948245983,-164.41629409,0.00026414,2]
[332069105,1720948245993,-323.15738521,0.00026431,2]
[332069107,1720948246003,-1014.17479414,0.00026526,2]
[332069109,1720948246014,-500.0,0.00026575,4]
[332069111,1720948246024,-538.89,0.00026575,2]
[332069113,1720948246033,-558.11,0.00026575,2]
[332069114,1720948246043,-500.0,0.00026575,2]
[332069115,1720948246052,-524.03,0.00026575,2]
[332069116,1720948246061,-500.0,0.00026575,2]
[332069117,1720948246070,-500.0,0.00026575,2]
[332069118,1720948246080,-1687.74,0.00026575,2]
[332069119,1720948246090,-528.67,0.00026575,2]
[332069121,1720948246100,-500.0,0.00026575,2]
[332069122,1720948246110,-500.0,0.00026575,2]
[332069123,1720948246119,-500.0,0.00026575,2]
[332069125,1720948246129,-612.77,0.00026575,2]
[332069127,1720948246139,-500.0,0.00026575,2]
[332069129,1720948246149,-576.40078359,0.00026575,2]
[332069132,1720948246158,-6934.14,0.00026575,2]
[332069135,1720948246168,-605.3552694,0.00026575,2]
[332069138,1720948246177,-500.0,0.00026575,2]
[332069140,1720948246187,-771.78,0.00026575,2]
[332069142,1720948246196,-6364.29,0.00026575,2]
[332069144,1720948246205,-1014.17479414,0.0002665,2]
[332069145,1720948246215,-164.41629409,0.00026715,2]
[332069146,1720948246224,-1022.93034077,0.00026839,3]
[332069147,1720948246233,-7203.92108041,0.00026849,5]
[332069148,1720948246245,-500.0,0.00026849,4]
[332069149,1720948246254,-538.89,0.00026849,2]
[332069150,1720948246263,-558.11,0.00026849,2]
[332069151,1720948246273,-500.0,0.00026849,2]
[332069152,1720948246282,-438.27270656,0.00026849,2]
[332069153,1720948246292,-500.0,0.00026849,2]
[332069154,1720948246303,-1687.74,0.00026849,2]
[332069155,1720948246312,-528.67,0.00026849,2]
[332069156,1720948246322,-441.36046505,0.00026849,2]
[332069157,1720948246332,-500.0,0.00026849,2]
[332069158,1720948246341,-500.0,0.00026849,2]
[332069159,1720948246350,-612.77,0.00026849,2]
[332069160,1720948246359,-500.0,0.00026849,2]
[332069161,1720948246369,-6934.14,0.00026849,2]
[332069162,1720948246377,-771.78,0.00026849,2]
[332069163,1720948246386,-6364.29,0.00026849,2]
[332069164,1720948246395,-323.15738521,0.00026875,2]
[332069165,1720948246405,-1014.17479414,0.00026903,2]
[332069166,1720948246414,-1014.17479414,0.00026909,2]
[332069167,1720948246423,-159.54345514,0.00026998,2]
[332069168,1720948246433,-500.0,0.00027123,4]
[332069169,1720948246442,-538.89,0.00027123,2]
[332069170,1720948246452,-558.11,0.00027123,2]
[332069171,1720948246461,-500.0,0.00027123,2]
[332069172,1720948246471,-500.0,0.00027123,2]
[332069173,1720948246480,-1687.74,0.00027123,2]
[332069174,1720948246489,-528.67,0.00027123,2]
[332069175,1720948246498,-500.0,0.00027123,2]
[332069176,1720948246508,-500.0,0.00027123,2]
[332069177,1720948246518,-612.77,0.00027123,2]
[332069178,1720948246527,-566.72165091,0.00027123,2]
[332069179,1720948246537,-6934.14,0.00027123,2]
[332069180,1720948246546,-771.78,0.00027123,2]
[332069181,1720948246555,-6364.29,0.00027123,2]
[332069182,1720948246565,-200.0,0.00027178,2]
[332069183,1720948246575,-750.0,0.00027195,2]
[332069184,1720948246585,-433.582666,0.00027195,2]
[332069185,1720948246595,-1014.17479414,0.00027228,2]
[332069186,1720948246604,-351.6282245,0.00027315,2]
[332069187,1720948246614,-164.41629409,0.00027325,2]
[332069188,1720948246623,-1014.17479414,0.0002737,2]
[332069189,1720948246633,-500.0,0.00027397,4]
[332069190,1720948246642,-538.89,0.00027397,2]
[332069191,1720948246651,-558.11,0.00027397,2]
[332069192,1720948246661,-500.0,0.00027397,2]
[332069193,1720948246670,-500.0,0.00027397,2]
[332069194,1720948246680,-1687.74,0.00027397,2]
[332069195,1720948246689,-528.67,0.00027397,2]
[332069196,1720948246699,-500.0,0.00027397,2]
[332069197,1720948246708,-500.0,0.00027397,2]
[332069198,1720948246717,-612.77,0.00027397,2]
[332069199,1720948246726,-6934.14,0.00027397,2]
[332069200,1720948246736,-771.78,0.00027397,2]
[332069201,1720948246747,-6364.29,0.00027397,2]
[332069202,1720948246756,-175.5061073,0.000274,2]
[332069203,1720948246765,-1022.93034077,0.00027507,3]
[332069204,1720948246775,-323.15738521,0.00027517,2]
[332069206,1720948246785,-160.221974,0.00027624,2]
[332069208,1720948246794,-159.54345514,0.00027654,2]
[332069210,1720948246804,-500.0,0.00027671,4]
[332069213,1720948246817,-538.89,0.00027671,2]
[332069215,1720948246832,-558.11,0.00027671,2]
[332069218,1720948246846,-500.0,0.00027671,2]
[332069220,1720948246866,-500.0,0.00027671,2]
[332069222,1720948246879,-1687.74,0.00027671,2]
[332069225,1720948246892,-528.67,0.00027671,2]
[332069227,1720948246904,-500.0,0.00027671,2]
[332069229,1720948246918,-500.0,0.00027671,2]
[332069232,1720948246931,-612.77,0.00027671,2]
[332069234,1720948246945,-6934.14,0.00027671,2]
[332069237,1720948246959,-771.78,0.00027671,2]
[332069239,1720948246972,-6364.29,0.00027671,2]
[332069241,1720948246986,-1014.17479414,0.00027838,2]
[332069244,1720948246999,-150.0,0.00027852,2]
[332069246,1720948247011,-503.0,0.00027852,2]
[332069248,1720948247023,-159.54345514,0.00027909,2]
[332069250,1720948247037,-500.0,0.00027945,4]
[332069253,1720948247050,-538.89,0.00027945,2]
[332069255,1720948247062,-558.11,0.00027945,2]
[332069257,1720948247073,-552.33363874,0.00027945,2]
[332069259,1720948247083,-500.0,0.00027945,2]
[332069262,1720948247096,-1687.74,0.00027945,2]
[332069264,1720948247107,-528.67,0.00027945,2]
[332069266,1720948247121,-500.0,0.00027945,2]
[332069269,1720948247136,-613.75837706,0.00027945,2]
[332069271,1720948247148,-612.77,0.00027945,2]
[332069273,1720948247161,-6934.14,0.00027945,2]
[332069276,1720948247176,-771.78,0.00027945,2]
[332069278,1720948247189,-6364.29,0.00027945,2]
[332069281,1720948247202,-1010.29185341,0.00028,2]
[332069283,1720948247212,-515.8936904,0.00028,2]
[332069285,1720948247223,-307.28386309,0.00028,30]
[332069287,1720948247234,-1022.93034077,0.00028209,3]
[332069289,1720948247245,-500.0,0.00028219,4]
[332069291,1720948247257,-538.89,0.00028219,2]
[332069294,1720948247270,-558.11,0.00028219,2]
[332069296,1720948247282,-500.0,0.00028219,2]
[332069298,1720948247292,-1687.74,0.00028219,2]
[332069301,1720948247304,-528.67,0.00028219,2]
[332069303,1720948247315,-500.0,0.00028219,2]
[332069305,1720948247327,-612.77,0.00028219,2]
[332069307,1720948247339,-6934.14,0.00028219,2]
[332069310,1720948247351,-411.44388515,0.00028219,2]
[332069528,1720948249470,-500.0,0.00024657,2]
[332069530,1720948249480,-500.0,0.00024931,2]
[332069532,1720948249489,-500.0,0.00025205,2]
[332069535,1720948249500,-500.0,0.00025479,2]
[332069537,1720948249510,-360.33611485,0.00028219,2]
[332069539,1720948249519,-6364.29,0.00028219,2]
[332069541,1720948249529,-1014.17479414,0.00028233,2]
[332069543,1720948249538,-154.59445059,0.00028295,2]
[332069545,1720948249547,-1014.17479414,0.00028452,2]
[332069547,1720948249557,-1407.0,0.00028461,2]
[332069549,1720948249566,-386.23835742,0.00028493,4]
[332069551,1720948249576,-538.89,0.00028493,2]
[332069553,1720948249586,-558.11,0.00028493,2]
[332069555,1720948249595,-500.0,0.00028493,2]
[332069557,1720948249604,-1687.74,0.00028493,2]
[332069559,1720948249613,-528.67,0.00028493,2]
[332069561,1720948249624,-500.0,0.00028493,2]
[332069563,1720948249634,-612.77,0.00028493,2]
[332069565,1720948249643,-6934.14,0.00028493,2]
[332069567,1720948249653,-771.78,0.00028493,2]
[332069569,1720948249663,-6364.29,0.00028493,2]
[332069571,1720948249672,-323.15738521,0.00028511,2]
[332069573,1720948249681,-400.0,0.00028548,2]
[332069575,1720948249691,-771.06667175,0.00028581,2]
[332069577,1720948249701,-1022.93034077,0.00028757,3]
[332069580,1720948249711,-2045.86068154,0.0002876,3]
[332069581,1720948249720,-538.89,0.00028767,2]
[332069584,1720948249730,-558.11,0.00028767,2]
[332069585,1720948249739,-500.0,0.00028767,2]
[332069587,1720948249749,-1687.74,0.00028767,2]
[332069590,1720948249759,-528.67,0.00028767,2]
[332069592,1720948249768,-500.0,0.00028767,2]
[332069594,1720948249778,-612.77,0.00028767,2]
[332069596,1720948249787,-6934.14,0.00028767,2]
[332069598,1720948249796,-771.78,0.00028767,2]
[332069600,1720948249805,-6364.29,0.00028767,2]
[332069602,1720948249815,-317.30214599,0.00028769,2]
[332069604,1720948249824,-105896.13995421,0.0002877,2]
[332069606,1720948249833,-1435.34449865,0.0002877,2]
[332069608,1720948249842,-151.0,0.0002877,7]
[332069610,1720948249852,-151.0,0.0002877,7]
[332069612,1720948249866,-151.0,0.0002877,7]
[332069614,1720948249875,-158.557667,0.0002877,7]
[332069616,1720948249885,-158.557667,0.0002877,7]
[332069618,1720948249896,-151.0,0.0002877,4]
[332069620,1720948249906,-202.09799933,0.00028811,2]
[332069622,1720948249916,-160.221974,0.00028821,2]
[332069624,1720948249925,-154.4827208,0.00028827,2]
[332069626,1720948249936,-323.15738521,0.00028879,2]
[332069628,1720948249946,-438.59492945,0.000289,2]
[332069630,1720948249956,-323.15738521,0.00028908,2]
[332069632,1720948249965,-1014.17479414,0.0002891,2]
[332069634,1720948249976,-323.15738521,0.00028958,2]
[332069636,1720948249985,-1000.0,0.00029,29]
[332069638,1720948249995,-323.15738521,0.00029018,2]
[332069640,1720948250006,-538.89,0.00029041,2]
[332069642,1720948250015,-558.11,0.00029041,2]
[332069643,1720948250025,-500.0,0.00029041,2]
[332069645,1720948250034,-1687.74,0.00029041,2]
[332069647,1720948250043,-528.67,0.00029041,2]
[332069649,1720948250054,-500.0,0.00029041,2]
[332069651,1720948250065,-612.77,0.00029041,2]
[332069653,1720948250074,-6934.14,0.00029041,2]
[332069655,1720948250084,-200.270721,0.00029041,7]
[332069657,1720948250094,-200.270721,0.00029041,7]
[332069659,1720948250104,-771.78,0.00029041,2]
[332069661,1720948250116,-6364.29,0.00029041,2]
[332069663,1720948250128,-323.15738521,0.00029149,2]
[332069665,1720948250138,-1014.17479414,0.00029232,2]
[332069667,1720948250147,-1022.93034077,0.00029305,3]
[332069669,1720948250156,-538.89,0.00029315,2]
[332069671,1720948250165,-558.11,0.00029315,2]
[332069673,1720948250175,-167.523711,0.00029315,7]
[332069676,1720948250185,-151.0,0.00029315,7]
[332069678,1720948250194,-151.0,0.00029315,7]
[332069680,1720948250204,-260.863233,0.00029315,7]
[332069682,1720948250214,-151.0,0.00029315,7]
[332069684,1720948250223,-171.17838314,0.00029315,2]
[332069686,1720948250232,-1687.74,0.00029315,2]
[332069688,1720948250241,-528.67,0.00029315,2]
[332069690,1720948250250,-500.0,0.00029315,2]
[332069692,1720948250259,-151.0,0.00029315,7]
[332069694,1720948250268,-219.569818,0.00029315,7]
[332069696,1720948250278,-219.569818,0.00029315,7]
[332069698,1720948250287,-151.0,0.00029315,7]
[332069699,1720948250296,-612.77,0.00029315,2]
[332069701,1720948250306,-151.0,0.00029315,7]
[332069703,1720948250315,-151.0,0.00029315,7]
[332069705,1720948250324,-296.840838,0.00029315,7]
[332069708,1720948250334,-296.840838,0.00029315,7]
[332069710,1720948250343,-6934.14,0.00029315,2]
[332069711,1720948250353,-771.78,0.00029315,2]
[332069713,1720948250362,-6364.29,0.00029315,2]
[332069714,1720948250371,-159.54345514,0.00029441,2]
[332069716,1720948250381,-1014.17479414,0.00029493,2]
[332069717,1720948250390,-323.15738521,0.00029575,2]
[332069720,1720948250399,-538.89,0.00029589,2]
[332069722,1720948250408,-558.11,0.00029589,2]
[332069724,1720948250418,-1687.74,0.00029589,2]
[332069726,1720948250427,-528.67,0.00029589,2]
[332069727,1720948250436,-500.0,0.00029589,2]
[332069729,1720948250446,-612.77,0.00029589,2]
[332069731,1720948250455,-6934.14,0.00029589,2]
[332069733,1720948250464,-771.78,0.00029589,2]
[332069735,1720948250474,-6364.29,0.00029589,2]
[332069737,1720948250482,-223.71703034,0.00029594,2]
[332069739,1720948250493,-323.15738521,0.00029688,2]
[332069741,1720948250502,-150.93216292,0.00029769,2]
[332069743,1720948250513,-159.54345514,0.00029772,2]
[332069745,1720948250525,-538.89,0.00029863,2]
[332069747,1720948250535,-558.11,0.00029863,2]
[332069749,1720948250544,-1687.74,0.00029863,2]
[332069751,1720948250554,-528.67,0.00029863,2]
[332069753,1720948250563,-500.0,0.00029863,2]
[332069755,1720948250572,-612.77,0.00029863,2]
[332069756,1720948250581,-6934.14,0.00029863,2]
[332069759,1720948250591,-771.78,0.00029863,2]
[332069761,1720948250600,-6364.29,0.00029863,2]
[332069763,1720948250610,-4331.64342127,0.000299,30]
[332069765,1720948250619,-159.54345514,0.0002993,2]
[332069767,1720948250629,-525.89628869,0.00029979,2]
[332069769,1720948250638,-250.46139104,0.0003,4]
[332069771,1720948250647,-500.3802031,0.0003,2]
[332069773,1720948250656,-907.52129878,0.0003,30]
[332069775,1720948250666,-643.93924923,0.0003,4]
[332069777,1720948250675,-471.89162154,0.0003,4]
[332069779,1720948250684,-154.55950541,0.0003,4]
[332069781,1720948250693,-1649.25974093,0.0003,4]
[332069783,1720948250703,-239.0,0.0003,2]
[332069785,1720948250713,-323.15738521,0.00030035,7]
[332069787,1720948250722,-1014.17479414,0.00030084,7]
[332069789,1720948250732,-538.89,0.00030136,2]
[332069791,1720948250743,-558.11,0.00030136,2]
[332069803,1720948250848,-1687.74,0.00030136,2]
[332069805,1720948250861,-528.67,0.00030136,2]
[332069807,1720948250870,-500.0,0.00030136,2]
[332069809,1720948250880,-612.77,0.00030136,2]
[332069811,1720948250889,-1861.95988494,0.00030136,2]
[332069843,1720948251202,-5072.18011506,0.00030136,2]
[332069845,1720948251213,-771.78,0.00030136,2]
[332069847,1720948251223,-2711.08386854,0.00030136,2]
[332069854,1720948251287,-500.0,0.00024657,2]
[332069856,1720948251296,-500.0,0.00024931,2]
[332069858,1720948251314,-3653.20613146,0.00030136,2]
[332069860,1720948251336,-1014.17479414,0.0003022,7]
[332069862,1720948251357,-309.11901082,0.00030229,2]
[332069864,1720948251378,-169.43278819,0.00030325,2]
[332069866,1720948251400,-306.0,0.00030329,2]
[332069868,1720948251421,-153.0,0.00030329,2]
[332069870,1720948251443,-153.0,0.00030329,2]
[332069872,1720948251465,-306.0,0.00030329,2]
[332069874,1720948251486,-153.0,0.00030329,2]
[332069876,1720948251515,-159.54345514,0.00030373,7]
[332069878,1720948251539,-538.89,0.0003041,2]
[332069880,1720948251549,-558.11,0.0003041,2]
[332069882,1720948251558,-1687.74,0.0003041,2]
[332069884,1720948251567,-528.67,0.0003041,2]
[332069886,1720948251577,-500.0,0.0003041,2]
[332069888,1720948251586,-6934.14,0.0003041,2]
[332069890,1720948251595,-771.78,0.0003041,2]
[332069892,1720948251604,-1555.40345491,0.0003041,2]
[332069948,1720948423739,11647.47556036,0.00014794,2]
[332069949,1720948484501,322.29577011,0.00014794,2]
[332069950,1720948518915,525.89628869,0.00014999,2]
[332069951,1720948539060,707.02894153,0.00014999,2]
[332069952,1720948566958,909.60427535,0.00014999,2]
[332069953,1720948572789,253.76598427,0.00014999,2]
[332069954,1720948576770,230.17864655,0.00014999,2]
[332069955,1720948576812,189.45170603,0.00014999,2]
[332069956,1720948578782,240.27901755,0.00014999,2]
[332069957,1720948583380,160.1381643,0.00014999,2]
[332069958,1720948595408,331.37,0.00010959,2]
[332069959,1720948603907,160.714285,0.0001559,2]
[332069960,1720948604122,160.714285,0.00015653,2]
[332069962,1720948618500,154.63660398,0.00014999,2]
[332069963,1720948634768,154.51328316,0.00014999,2]
[332069964,1720948639716,402.73174598,0.00014999,2]
[332069965,1720948653940,154.63660398,0.00014999,2]
[332069966,1720948656689,994.360721,0.00015096,2]
[332069967,1720948667427,196.6123045,0.00015678,2]
[332069968,1720948685420,525.07409416,0.00014999,2]
[332069969,1720948691397,154.65087947,0.00015678,2]
[332069971,1720948696650,200.14375794,0.00014999,2]
[332069972,1720948702798,386.32333084,0.00015678,2]
[332069973,1720948719639,189.45170603,0.00014999,2]
[332069974,1720948731547,272.36372956,0.00014999,2]
[332069975,1720948737744,24900.0,0.00015101,2]
[332069976,1720948738603,1970.0186731,0.00015101,2]
[332069977,1720948744787,240.27901755,0.00014999,2]
[332069978,1720948745967,909.60427535,0.00014999,2]
[332069979,1720948773650,204.40553928,0.00015678,2]
[332069980,1720948808853,154.51328316,0.00014999,2]
[332069981,1720948813518,155.63385317,0.00014999,2]
[332069982,1720948861478,305.83767259,0.00014999,2]
[332069983,1720948891977,909.60427535,0.00014999,2]
[332069984,1720948900528,189.45170603,0.00014999,2]
[332069985,1720948915559,189.45170603,0.00014999,2]
[332069986,1720948928807,240.04431147,0.00014999,2]
[332069987,1720948929177,402.73174598,0.00014999,2]
[332069988,1720948949676,3182.19249917,0.00014999,2]
[332069989,1720949009757,154.51328316,0.00014999,2]
[332069990,1720949017106,250.0,0.00015101,2]
[332069991,1720949034464,909.60427535,0.00014999,2]
[332069992,1720949057815,240.27901755,0.00014999,2]
[332069993,1720949079051,524.3970699,0.00014999,2]
[332069994,1720949081534,189.45170603,0.00014999,2]
[332069995,1720949115714,403.003832,0.00014999,2]
[332069996,1720949194606,298.2602806,0.00014999,2]
[332069997,1720949209822,240.12254683,0.00014999,2]
[332069998,1720949211557,287.26842178,0.00014999,2]
[332069999,1720949228135,-160.714285,0.00015715,2]
[332070000,1720949228162,-160.714285,0.00015778,2]
[332070001,1720949228186,-160.714285,0.0001584,2]
[332070002,1720949228209,-160.714285,0.00015903,2]
[332070003,1720949228232,-160.714285,0.00015965,2]
[332070004,1720949228255,-3.96973214,0.00016028,2]
[332070005,1720949232309,456.9029284,0.00015336,2]
[332070006,1720949239088,-156.74455286,0.00016028,2]
[332070007,1720949239112,-160.714285,0.0001609,2]
[332070008,1720949239136,-160.714285,0.00016153,2]
[332070009,1720949239169,-206.29616559,0.00016155,2]
[332070010,1720949239195,-138.06141279,0.00016215,2]
[332070012,1720949241099,-22.65287221,0.00016215,2]
[332070013,1720949241121,-300.0,0.00016253,2]
[332070014,1720949241142,-392.40236796,0.00016254,2]
[332070015,1720949250066,237.22605744,0.00014999,2]
[332070016,1720949251096,-107.59763204,0.00016254,2]
[332070017,1720949251126,-118.30354926,0.00016254,2]
[332070018,1720949252110,-381.69645074,0.00016254,2]
[332070019,1720949252133,-424.88118326,0.00016254,2]
[332070020,1720949299486,24900.0,0.00015344,2]
[332070022,1720949346162,-1118.21540396,0.00016155,2]
[332070023,1720949346187,-300.0,0.00016253,2]
[332070024,1720949346211,-300.0,0.00016253,2]
[332070025,1720949346233,-307.18731892,0.00016254,2]
[332070026,1720949346254,-75.11881674,0.00016254,2]
[332070027,1720949346276,-500.0,0.00016254,2]
[332070028,1720949346298,-500.0,0.00016254,2]
[332070029,1720949346319,-500.0,0.00016254,2]
[332070030,1720949346339,-500.0,0.00016254,2]
[332070031,1720949346359,-293.31602616,0.00016254,2]
[332070032,1720949346380,-500.0,0.00016254,2]
[332070033,1720949346401,-500.0,0.00016254,2]
[332070034,1720949346423,-295.56385143,0.00016254,2]
[332070035,1720949346445,-426.60934951,0.00016254,2]
[332070036,1720949346467,-158.51214994,0.00016254,2]
[332070037,1720949346487,-34969.80169059,0.00016255,2]
[332070038,1720949346510,-13233.0088595,0.00016255,2]
[332070039,1720949346531,-292.8332064,0.00016255,2]
[332070040,1720949346552,-201.63116445,0.00016255,2]
[332070041,1720949346573,-160.714285,0.00016392,2]
[332070042,1720949346595,-497.18036,0.00016475,2]
[332070043,1720949346618,-160.714285,0.00016819,2]
[332070044,1720949346641,-160.714285,0.00017246,2]
[332070045,1720949346664,-287.0,0.00017765,2]
[332070046,1720949346689,-300.0,0.00017878,2]
[332070047,1720949346712,-12834.2913963,0.0001799,2]
[332070048,1720949346736,-193.32899505,0.00017999,2]
[332070049,1720949346759,-233.39453665,0.00018,2]
[332070050,1720949346780,-45282.09419111,0.00018,2]
[332070051,1720949349168,-54717.90580889,0.00018,2]
[332070052,1720949349193,-250.0,0.00019041,2]
[332070053,1720949349216,-160.607646,0.00019178,2]
[332070054,1720949349240,-1118.21540396,0.00019261,2]
[332070055,1720949349264,-154.66393077,0.0002,2]
[332070056,1720949349286,-285.0,0.00021095,2]
[332070057,1720949349308,-253.11569828,0.00021095,2]
[332070058,1720949349329,-253.18859241,0.00021096,2]
[332070059,1720949360073,-168.877123,0.00021096,2]
[332070060,1720949365133,-327.93428459,0.00021096,2]
[332070061,1720949365153,-411.903533,0.00021096,2]
[332070062,1720949365174,-502.70349642,0.000212,2]
[332070063,1720949365199,-161.401561,0.00021724,2]
[332070064,1720949365222,-261.65035706,0.00022,2]
[332070065,1720949365243,-880.93169364,0.0002217,2]
[332070066,1720949365265,-1118.21540396,0.00022368,2]
[332070067,1720949371962,154.51328316,0.00021917,2]
[332070068,1720949372105,-1113.06032485,0.0002243,2]
[332070069,1720949372126,-893.2074911,0.00024,2]
[332070070,1720949372149,-12220.22116198,0.00024647,3]
[332070076,1720949388656,29.78103653,0.00018,2]
[332070077,1720949388680,150.112233,0.00018,2]
[332070078,1720949388703,233.897399,0.00018,2]
[332070079,1720949388727,267.86365576,0.00018,2]
[332070525,1720949439455,-302.13634424,0.00018,2]
[332070526,1720949439467,-99016.20933147,0.00018,2]
[332070527,1720949439477,-1283.69950267,0.000189,2]
[332070528,1720949439486,-285.0,0.00021,2]
[332070529,1720949439495,-1113.06032485,0.00021818,2]
[332070530,1720949439504,-34969.80169059,0.00021818,2]
[332070531,1720949439514,-154.51328316,0.00021917,2]
[332070532,1720949439524,-1283.69950267,0.000239,2]
[332070533,1720949439533,-7031.21593242,0.00024647,3]
[332070534,1720949439543,-500.0,0.00024657,2]
[332070535,1720949439552,-500.0,0.00024657,2]
[332070536,1720949439561,-1500.0,0.00024657,2]
[332070537,1720949439570,-788.83,0.00024657,2]
[332070538,1720949439580,-500.0,0.00024657,2]
[332070539,1720949439589,-500.0,0.00024657,2]
[332070540,1720949439598,-500.0,0.00024657,2]
[332070541,1720949439608,-500.0,0.00024657,2]
[332070542,1720949439617,-500.0,0.00024657,2]
[332070543,1720949439626,-500.0,0.00024657,2]
[332070544,1720949439635,-500.0,0.00024657,2]
[332070545,1720949439645,-500.0,0.00024657,2]
[332070546,1720949439654,-500.0,0.00024657,2]
[332070547,1720949439663,-500.0,0.00024657,2]
[332070548,1720949439672,-500.0,0.00024657,2]
[332070549,1720949439681,-500.0,0.00024657,2]
[332070550,1720949439690,-500.0,0.00024657,2]
[332070551,1720949439699,-561.7797226,0.00024657,2]
[332070552,1720949439709,-629.32,0.00024657,2]
[332070553,1720949439718,-500.0,0.00024657,2]
[332070554,1720949439727,-821.0,0.00024657,2]
[332070555,1720949439736,-500.0,0.00024657,2]
[332070556,1720949439745,-501.03474475,0.00024657,2]
[332070557,1720949439755,-500.0,0.00024657,2]
[332070558,1720949439764,-500.38141201,0.00024657,2]
[332070559,1720949439773,-500.0,0.00024657,2]
[332070560,1720949439783,-500.0,0.00024657,2]
[332070561,1720949439791,-500.0,0.00024657,2]
[332070562,1720949439801,-500.0,0.00024657,2]
[332070563,1720949439810,-500.0,0.00024657,2]
[332070564,1720949439819,-500.0,0.00024657,2]
[332070565,1720949439829,-500.0,0.00024657,2]
[332070566,1720949439838,-500.0,0.00024657,2]
[332070567,1720949439847,-500.0,0.00024657,2]
[332070568,1720949439857,-500.0,0.00024657,2]
[332070569,1720949439866,-500.0,0.00024657,2]
[332070570,1720949439875,-500.0,0.00024657,2]
[332070571,1720949439884,-500.0,0.00024657,2]
[332070572,1720949439893,-500.0,0.00024657,2]
[332070573,1720949439903,-500.0,0.00024657,2]
[332070574,1720949439913,-500.0,0.00024657,2]
[332070575,1720949439922,-153.51982447,0.00024657,2]
[332070576,1720949439931,-500.0,0.00024657,2]
[332070577,1720949439940,-500.0,0.00024657,2]
[332070578,1720949439950,-500.0,0.00024657,2]
[332070579,1720949439960,-500.0,0.00024657,2]
[332070580,1720949439969,-500.0,0.00024657,2]
[332070581,1720949439980,-500.0,0.00024657,2]
[332070582,1720949439989,-500.0,0.00024657,2]
[332070583,1720949439999,-500.0,0.00024657,2]
[332070584,1720949440008,-500.0,0.00024657,2]
[332070585,1720949440018,-500.0,0.00024657,2]
[332070586,1720949440028,-200.0,0.00024657,7]
[332070587,1720949440038,-500.0,0.00024657,2]
[332070588,1720949440047,-500.0,0.00024657,2]
[332070589,1720949440056,-504.67994546,0.00024657,2]
[332070590,1720949440066,-500.0,0.00024657,2]
[332070591,1720949440075,-500.0,0.00024657,2]
[332070592,1720949440084,-500.0,0.00024657,2]
[332070593,1720949440093,-500.0,0.00024657,2]
[332070594,1720949440102,-500.0,0.00024657,2]
[332070595,1720949440112,-500.0,0.00024657,2]
[332070596,1720949440121,-500.0,0.00024657,2]
[332070597,1720949440130,-500.0,0.00024657,2]
[332070598,1720949440139,-500.0,0.00024657,2]